bitfinex/quotes_ETHUSD_20220310
["timestamp","ask_amount","ask_price","bid_price","bid_amount"]
[1646945829583,0.1940119,2621.4,2620.9,1.35452856]
[1646945829783,0.00440909,2621.2,2620.9,0.00440967]
[1646945830384,0.05460117,2621.2,2620.9,0.00440967]
[1646945830585,0.05019208,2621.2,2620.8,1.2043254]
[1646945831022,0.05460117,2621.2,2620.9,0.00440967]
[1646945831623,0.05460117,2621.2,2620.8,0.25]
[1646945831624,22.5,2621.0,2620.8,0.25]
[1646945831825,0.06223176,2620.7,2620.4,3.8174799]
[1646945832021,0.06223176,2620.7,2620.2,1.27410756]
[1646945832222,0.06223176,2620.7,2620.3,1.35559328]
[1646945832926,0.06068975,2620.7,2620.3,1.35559328]
[1646945833830,0.06068975,2620.7,2620.3,2.31008328]
[1646945834027,0.06068975,2620.7,2620.4,1.35559328]
[1646945834427,0.06068975,2620.7,2620.3,1.9089849]
[1646945834691,0.19435485,2620.6,2620.3,1.9089849]
[1646945835488,0.06068975,2620.7,2620.4,1.35577366]
[1646945836884,0.06068975,2620.7,2620.4,1.36049524]
[1646945837086,0.06068975,2620.7,2620.4,0.00472158]
[1646945837888,0.06068975,2620.7,2620.5,1.35596574]
[1646945838091,0.06068975,2620.7,2620.6,1.35587072]
[1646945838292,0.06068975,2620.7,2620.6,0.00679061]
[1646945838525,0.06068975,2620.7,2620.6,1.36266133]
[1646945838734,0.06068975,2620.7,2620.6,2.95658723]
[1646945839135,0.06068975,2620.7,2620.6,3.14728723]
[1646945839536,0.06068975,2620.7,2620.6,4.10158723]
[1646945840532,0.06068975,2620.7,2620.6,3.91088723]
[1646945846626,0.06068975,2620.7,2620.6,2.78058723]
[1646945846824,0.06068975,2620.7,2620.6,1.82628723]
[1646945849034,0.06068975,2620.7,2620.6,2.78049723]
[1646945849679,0.06068975,2620.7,2620.6,2.39739723]
[1646945850082,0.06068975,2620.7,2620.6,2.78049723]
[1646945850282,0.06068975,2620.7,2620.6,3.24349723]
[1646945854529,0.06068975,2620.7,2620.6,3.23199723]
[1646945857881,0.00411319,2621.1,2620.8,1.02369021]
[1646945858082,0.00411319,2621.1,2620.8,3.88610741]
[1646945858282,0.01932494,2621.6,2620.8,3.88610741]
[1646945858482,0.01836494,2621.6,2620.8,2.93195741]
[1646945858683,0.0041134,2621.1,2620.8,2.93607141]
[1646945859283,0.0041134,2621.1,2620.9,0.95413]
[1646945859486,0.01836494,2621.6,2620.9,1.90826]
[1646945859684,0.01836494,2621.6,2621.2,0.9541]
[1646945860939,0.01836494,2621.6,2621.2,1.9082]
[1646945861126,0.00411316,2621.5,2621.2,1.9082]
[1646945861928,0.01836494,2621.6,2621.2,1.9082]
[1646945862128,0.00411627,2621.5,2621.3,2.8623134]
[1646945862328,0.00411627,2621.5,2621.3,3.8164034]
[1646945863133,0.01836494,2621.6,2621.3,3.8164034]
[1646945863333,0.00411623,2621.5,2621.4,0.9540819]
[1646945864334,0.01836494,2621.6,2621.4,0.9540819]
[1646945864335,0.06779945,2621.6,2621.4,0.9540819]
[1646945864533,0.07191565,2621.6,2621.4,0.9540819]
[1646945864978,1.0,2621.5,2621.4,0.9540819]
[1646945865284,0.07191565,2621.6,2621.3,2.8623134]
[1646945865478,0.06779945,2621.6,2621.3,2.8623134]
[1646945865978,0.06992683,2621.6,2621.3,2.8623134]
[1646945866678,0.06779945,2621.6,2621.3,2.8623134]
[1646945866878,0.06992683,2621.6,2621.3,2.8623134]
[1646945867079,1.23063308,2621.5,2621.3,2.8623134]
[1646945867281,0.0434709,2621.4,2620.9,1.90868]
[1646945867579,0.0434709,2621.4,2620.6,1.9351237]
[1646945867779,5.43592698,2621.5,2620.6,1.9351237]
[1646945867780,0.04825084,2621.3,2620.6,1.9351237]
[1646945867983,0.04825084,2621.3,2620.8,0.9543801]
[1646945868180,0.00212737,2621.1,2620.8,0.9543801]
[1646945868835,0.00212737,2621.1,2620.8,1.9087401]
[1646945869036,0.00212737,2621.1,2620.8,3.8171396]
[1646945869237,0.04683274,2621.5,2620.8,3.8171396]
[1646945869438,0.00458176,2621.1,2620.8,3.82172203]
[1646945869739,0.00458176,2621.1,2620.8,4.77594203]
[1646945870342,0.08381916,2621.5,2620.9,0.95419]
[1646945870547,0.00458176,2621.1,2621.0,0.9542775]
[1646945871540,1.13523599,2621.4,2620.9,0.95419]
[1646945871741,0.00228624,2621.2,2620.9,0.95419]
[1646945872377,0.08381916,2621.5,2621.2,0.00171973]
[1646945872676,0.03698642,2621.5,2621.2,0.00171973]
[1646945874175,0.03698642,2621.5,2621.2,1.91012363]
[1646945874376,0.01836494,2621.6,2621.2,1.91012363]
[1646945874578,0.19412185,2621.5,2621.3,1.35980418]
[1646945876627,0.19884198,2621.5,2621.3,1.35980418]
[1646945876828,0.19412185,2621.4,2621.3,1.35980418]
[1646945877830,0.19884203,2621.5,2621.2,0.00171973]
[1646945878030,0.19412185,2621.4,2621.2,1.36367652]
[1646945878433,1.00016781,2621.3,2621.2,1.36367652]
[1646945878632,1.19428966,2621.3,2621.2,1.36367652]
[1646945878832,1.19428966,2621.3,2621.2,0.00171973]
[1646945879882,0.19412185,2621.3,2621.2,0.00171973]
[1646945880281,0.24092253,2621.3,2621.2,0.00171973]
[1646945880481,0.24092253,2621.3,2621.2,1.36421382]
[1646945880682,0.19412185,2621.3,2621.2,1.36421382]
[1646945881482,0.19868634,2621.4,2621.2,1.36421382]
[1646945881787,0.14412185,2621.3,2621.2,1.82721382]
[1646945881980,0.00456449,2621.4,2621.2,3.16433382]
[1646945882181,0.01836494,2621.6,2621.3,0.07541155]
[1646945882382,0.01836494,2621.6,2621.4,0.953856]
[1646945883441,0.01836494,2621.6,2621.4,1.907706]
[1646945884027,0.01836494,2621.6,2621.4,2.861566]
[1646945885033,0.02079198,2621.6,2621.4,2.861566]
[1646945885942,0.01836494,2621.6,2621.4,2.861566]
[1646945886334,0.02308498,2621.6,2621.4,2.861566]
[1646945887282,0.01836494,2621.6,2621.4,2.861566]
[1646945887482,0.02308498,2621.6,2621.4,2.861566]
[1646945888284,0.02308498,2621.6,2621.5,0.55204165]
[1646945888492,0.01836494,2621.6,2621.5,1.23514165]
[1646945888686,0.02731231,2622.0,2621.7,1.04311522]
[1646945889789,0.01315478,2622.0,2621.7,1.04311522]
[1646945890189,0.01315478,2622.0,2621.7,3.90434952]
[1646945890792,0.00843504,2622.0,2621.7,3.90434952]
[1646945891060,0.01299903,2622.0,2621.7,4.85808952]
[1646945892057,0.01299903,2622.0,2621.7,3.90434952]
[1646945892058,1.0,2621.8,2621.7,3.90434952]
[1646945892256,0.01299903,2622.0,2621.7,4.85809952]
[1646945892657,0.01299903,2622.0,2621.9,0.95374]
[1646945893059,1.01299903,2622.0,2621.9,0.95374]
[1646945893258,1.00843504,2622.0,2621.9,0.95374]
[1646945893457,0.00843504,2622.0,2621.9,0.95374]
[1646945894676,0.00843504,2622.0,2621.9,0.72146547]
[1646945894881,0.04088684,2622.0,2621.9,0.72146547]
[1646945895083,0.02490628,2622.0,2621.9,0.72146547]
[1646945895482,0.01687008,2622.1,2621.9,0.72146547]
[1646945895685,0.01687008,2622.1,2621.9,1.67516797]
[1646945895884,0.02126699,2622.1,2621.9,1.67516797]
[1646945896082,0.0348574,2622.4,2622.0,1.90741]
[1646945896483,0.0348574,2622.4,2622.1,0.95369]
[1646945897484,0.0348574,2622.4,2622.1,2.86109]
[1646945898286,0.0348574,2622.4,2622.1,3.8147925]
[1646945900135,0.0348574,2622.4,2622.1,1.9073925]
[1646945900736,0.09242296,2622.4,2622.1,0.95369]
[1646945901137,0.79771686,2622.4,2622.1,0.95369]
[1646945901545,0.7932974,2622.4,2622.1,0.95369]
[1646945901936,0.18601986,2622.3,2622.1,0.95369]
[1646945903189,0.19051917,2622.3,2622.1,0.95369]
[1646945903388,0.18601986,2622.2,2622.0,3.8148149]
[1646945904191,0.18601986,2622.1,2622.0,3.8148149]
[1646945905789,0.18601986,2622.1,2622.0,1.90741]
[1646945906033,0.04884632,2622.2,2622.0,1.90741]
[1646945906233,0.18601986,2622.1,2622.0,1.90741]
[1646945906632,0.22933637,2622.1,2622.0,1.90741]
[1646945907832,3.72933637,2622.1,2622.0,1.90741]
[1646945908041,3.68601986,2622.1,2622.0,1.90741]
[1646945908637,0.89131376,2622.1,2622.0,1.90741]
[1646945909239,0.7052939,2622.1,2622.0,1.90741]
[1646945909541,0.89131376,2622.1,2622.0,1.90741]
[1646945909986,0.18601986,2622.1,2622.0,1.90741]
[1646945910189,0.71783825,2622.1,2622.0,1.24767022]
[1646945910391,0.20020796,2622.1,2621.9,1.90783]
[1646945910587,0.71781821,2622.1,2621.9,1.90783]
[1646945910788,0.18601986,2622.0,2621.9,1.90783]
[1646945912194,1.18601986,2622.0,2621.9,1.90783]
[1646945913836,0.18601986,2622.0,2621.9,1.90783]
[1646945914237,0.20018578,2622.0,2621.9,1.90783]
[1646945914638,0.20018578,2622.0,2621.9,3.76405842]
[1646945915642,8.28e-06,2622.1,2621.9,3.76405842]
[1646945915844,0.01938853,2622.2,2622.1,0.00079172]
[1646945916044,0.01497147,2622.2,2622.1,0.00079172]
[1646945916245,0.0183,2622.6,2622.2,0.95353]
[1646945916446,0.0183,2622.6,2622.3,0.1905]
[1646945916843,0.0183,2622.6,2622.2,3.16059]
[1646945917285,0.0342511,2622.7,2622.2,3.16059]
[1646945917490,0.00242042,2622.5,2622.2,3.16059]
[1646945917784,0.0342511,2622.7,2622.2,3.16059]
[1646945917985,0.0342511,2622.7,2622.3,1.90706]
[1646945918185,0.0342511,2622.7,2622.4,0.95353]
[1646945918387,0.0342511,2622.7,2622.5,0.95361]
[1646945918586,0.0342511,2622.7,2622.5,6.6752834]
[1646945919187,0.0342511,2622.7,2622.6,0.3]
[1646945919790,0.06479326,2622.8,2622.6,0.3]
[1646945919992,0.0695157,2622.8,2622.7,0.9535828]
[1646945920791,0.06479326,2622.8,2622.7,0.9535828]
[1646945921036,0.02958652,2622.8,2622.7,1.9071028]
[1646945921233,0.02958652,2622.8,2622.7,0.9535828]
[1646945921441,0.01945823,2622.9,2622.7,0.9535828]
[1646945922041,0.01473588,2622.9,2622.7,0.9535828]
[1646945922240,0.01945818,2622.9,2622.7,0.9535828]
[1646945923340,0.01473588,2622.9,2622.7,0.9535828]
[1646945923540,0.01945818,2622.9,2622.7,0.9535828]
[1646945923740,0.72308829,2622.9,2622.7,0.9535828]
[1646945923941,0.01945818,2622.9,2622.7,0.9535828]
[1646945924541,0.01473588,2622.9,2622.7,0.9535828]
[1646945924789,0.72294662,2622.9,2622.7,0.9535828]
[1646945925587,0.71836599,2622.9,2622.7,0.9535828]
[1646945925888,0.72294662,2622.9,2622.7,0.9535828]
[1646945926886,0.01473588,2622.9,2622.7,0.9535828]
[1646945927087,0.01931651,2622.9,2622.7,0.9535828]
[1646945927287,0.72294662,2622.9,2622.7,0.9535828]
[1646945928090,0.01473588,2622.9,2622.7,0.9535828]
[1646945928288,1.01914879,2622.9,2622.7,0.9535828]
[1646945928934,1.01914879,2622.9,2622.7,5.7211455]
[1646945929332,1.01914879,2622.9,2622.8,0.3]
[1646945929333,1.01473588,2622.9,2622.8,0.3]
[1646945929535,1.01914879,2622.9,2622.8,0.3]
[1646945930536,1.01473588,2622.9,2622.8,0.3]
[1646945930736,0.02947176,2622.9,2622.8,0.3]
[1646945930936,0.00441287,2623.0,2622.8,2.20693]
[1646945931538,1.0,2622.9,2622.8,2.20693]
[1646945932891,0.0433192,2623.1,2622.9,2.86046]
[1646945933089,0.00442052,2623.0,2622.9,2.86046]
[1646945933289,0.00442052,2623.0,2622.9,1.90697]
[1646945933889,0.0433192,2623.1,2622.9,1.90697]
[1646945934392,0.0193933,2623.3,2623.0,0.08612555]
[1646945934393,0.72302341,2623.3,2623.0,0.08612555]
[1646945934790,0.10011801,2623.5,2623.0,1.03952555]
[1646945934990,0.10011801,2623.5,2623.1,2.8599821]
[1646945935192,0.10011801,2623.5,2623.2,3.81339]
[1646945935495,0.0161422,2623.5,2623.2,4.7667705]
[1646945935690,0.16686515,2623.4,2623.2,4.7667705]
[1646945935947,0.16686515,2623.4,2623.2,3.09180694]
[1646945937142,0.16686515,2623.4,2623.3,2.86014]
[1646945940496,11.7,2623.4,2623.3,1.90678]
[1646945940703,0.16686515,2623.4,2623.3,1.90678]
[1646945941499,0.16686515,2623.4,2623.3,8e-05]
[1646945941697,13.80725702,2623.4,2623.3,8e-05]
[1646945941898,12.86686515,2623.4,2623.3,8e-05]
[1646945942101,13.80725702,2623.4,2623.2,1.90678]
[1646945942300,13.80725702,2623.4,2622.0,0.2713967]
[1646945942301,11.7,2623.2,2622.0,0.2713967]
[1646945942502,11.7,2623.2,2621.9,3.81439]
[1646945942503,11.7,2622.7,2621.8,0.3812]
[1646945942701,11.7,2622.7,2622.4,0.00456789]
[1646945942702,0.16686515,2622.6,2622.4,0.00456789]
[1646945942898,0.16686515,2622.5,2622.4,0.00456789]
[1646945943306,11.86686515,2622.5,2622.4,0.00456789]
[1646945943566,13.82181114,2622.5,2622.4,0.00456789]
[1646945943769,11.7,2622.3,2622.1,0.00079172]
[1646945943969,0.16686515,2622.2,2622.1,0.00079172]
[1646945947205,0.16686515,2622.2,2622.0,0.85497172]
[1646945947206,1.12096515,2622.2,2622.0,0.85497172]
[1646945947398,0.16686515,2622.1,2622.0,0.85497172]
[1646945947599,0.16686515,2622.1,2622.0,0.85938644]
[1646945948401,0.16686515,2622.1,2621.6,0.95432]
[1646945948402,3.96686515,2622.1,2621.6,0.95432]
[1646945948603,12.65434,2621.9,2621.6,0.95432]
[1646945948900,12.65434,2621.9,2621.5,1.90854]
[1646945948901,0.16686515,2621.8,2621.5,1.90854]
[1646945949104,0.16686515,2621.7,2621.5,1.90854]
[1646945949300,11.7,2621.9,2621.5,1.90854]
[1646945949499,3.8,2622.1,2621.5,1.90854]
[1646945949500,1.14187973,2621.6,2621.5,1.90854]
[1646945949900,1.14187973,2621.6,2621.5,1.80854]
[1646945950300,0.95439,2621.7,2621.5,1.80854]
[1646945950701,0.14454185,2621.6,2621.5,1.80854]
[1646945951141,0.0529849,2621.9,2621.5,4.16794576]
[1646945951142,1.0072149,2621.9,2621.5,4.16794576]
[1646945951343,1.0072149,2621.9,2621.5,2.76718511]
[1646945951344,0.14448718,2621.8,2621.5,2.76718511]
[1646945951541,0.14448718,2621.8,2621.5,3.72134511]
[1646945951743,0.14448718,2621.8,2621.6,0.95412]
[1646945952545,0.0529849,2621.9,2621.6,0.95412]
[1646945952743,0.14447755,2621.8,2621.6,0.85412]
[1646945953343,0.14447755,2621.8,2621.6,1.8082181]
[1646945953543,0.14447755,2621.8,2621.6,1.81262569]
[1646945954542,0.14447755,2621.8,2621.6,1.8082181]
[1646945954816,0.14447755,2621.8,2621.6,1.81262569]
[1646945955222,3.8,2622.1,2621.7,4.98165509]
[1646945955521,3.8,2622.1,2621.8,2.35895593]
[1646945955718,3.8,2622.1,2621.9,1.40505203]
[1646945956717,2.12459143,2622.1,2621.9,4.26663463]
[1646945956918,2.12459143,2622.1,2622.0,1.40505203]
[1646945957518,2.12459143,2622.1,2621.9,3.81988991]
[1646945957519,2.30026673,2622.1,2621.9,3.81988991]
[1646945957721,0.1756753,2622.0,2621.9,3.81988991]
[1646945957917,0.1756753,2622.0,2621.9,3.71988991]
[1646945958118,0.1756753,2622.0,2621.9,3.7154826]
[1646945959446,0.20597762,2622.0,2621.9,3.7154826]
[1646945959647,0.03030232,2622.0,2621.9,8.59017521]
[1646945960049,0.03030232,2622.0,2621.9,11.09017521]
[1646945960050,0.00393032,2622.0,2621.9,11.09017521]
[1646945960249,2.12459143,2622.1,2621.9,11.09017521]
[1646945960445,2.12459143,2622.1,2622.0,7.37469261]
[1646945960848,2.12459143,2622.1,2622.0,3.77469261]
[1646945961450,2.12459143,2622.1,2622.0,1.37469261]
[1646945961647,2.30021763,2622.1,2622.0,1.37469261]
[1646945961847,2.30021763,2622.1,2621.9,3.7154826]
[1646945962047,2.30021763,2622.1,2621.9,3.71990138]
[1646945962048,2.12459143,2622.1,2621.9,3.71990138]
[1646945962897,2.12459143,2622.1,2621.9,3.7154826]
[1646945963100,1.42459143,2622.1,2621.9,3.7154826]
[1646945963299,1.42459143,2622.1,2621.9,3.71990142]
[1646945964299,1.37459143,2622.1,2621.9,3.71989985]
[1646945964500,0.17570051,2622.0,2621.9,3.71989985]
[1646945965102,0.17570051,2622.0,2621.9,0.95831725]
[1646945965302,0.17570051,2622.0,2621.9,0.9539]
[1646945966372,0.17570051,2622.0,2621.8,0.00441729]
[1646945966575,0.17570051,2622.0,2621.7,1.90791]
[1646945967072,0.17570051,2622.0,2621.8,0.00441729]
[1646945967473,0.95427,2621.9,2621.8,0.00441729]
[1646945967674,1.12997051,2621.9,2621.7,1.90791]
[1646945967875,0.19796841,2621.8,2621.7,2.86204]
[1646945968075,1.37459143,2622.1,2621.8,0.00441751]
[1646945968375,0.19792594,2622.0,2621.8,0.00441751]
[1646945968773,0.24403554,2622.0,2621.8,0.00441751]
[1646945968975,0.19792594,2621.9,2621.7,3.8161635]
[1646945969179,0.19792594,2621.9,2621.8,0.00441751]
[1646945969575,1.37459143,2622.1,2621.8,1.35687849]
[1646945969801,0.19790155,2622.0,2621.9,1.90796]
[1646945970001,0.19790155,2622.0,2621.9,7.71430548]
[1646945970205,1.37459143,2622.1,2622.0,0.06911002]
[1646945970406,1.37459143,2622.1,2622.0,2.29997263]
[1646945970603,1.0,2622.3,2622.0,4.921521]
[1646945970802,1.0,2622.3,2622.1,2.30617098]
[1646945971004,2.87966552,2622.8,2622.1,4.7688919]
[1646945971205,1.0,2622.6,2622.1,3.8151319]
[1646945971404,0.19787886,2622.5,2622.1,3.8151319]
[1646945971609,0.19787886,2622.5,2622.2,0.0791825]
[1646945971807,0.19787886,2622.5,2622.3,0.00441708]
[1646945972002,0.19787886,2622.5,2622.3,2.86576918]
[1646945972605,0.19787886,2622.5,2622.3,2.8613521]
[1646945972805,0.19787886,2622.5,2622.3,2.86576922]
[1646945973651,0.19787886,2622.5,2622.3,0.95819712]
[1646945973853,0.19787886,2622.5,2622.3,0.95378]
[1646945974055,11.7,2622.4,2622.3,0.00441712]
[1646945974254,12.59998299,2622.4,2622.3,0.00441712]
[1646945974457,11.89787886,2622.4,2622.3,0.00441712]
[1646945974753,11.89787886,2622.4,2621.2,3.81743973]
[1646945974754,17.5775373,2622.4,2621.2,0.00171973]
[1646945974954,0.0480691,2621.8,2621.2,0.00171973]
[1646945975153,11.89787886,2621.7,2621.2,0.00171973]
[1646945975354,0.24251205,2621.6,2621.2,0.00171973]
[1646945975576,0.19787886,2621.5,2621.2,0.00171973]
[1646945975754,12.7,2621.3,2621.2,0.00171973]
[1646945975957,13.9067505,2621.3,2621.2,0.00171973]
[1646945976156,14.86759661,2621.3,2621.2,0.00171973]
[1646945976660,16.03297866,2621.3,2621.2,0.00171973]
[1646945976857,15.33059661,2621.3,2621.2,0.00171973]
[1646945977061,23.5,2621.2,2620.6,0.3813]
[1646945977311,1.1776641,2620.3,2620.0,0.08242948]
[1646945977513,12.65488,2620.7,2620.1,1.35369031]
[1646945977713,0.19833406,2620.6,2620.1,1.35369031]
[1646945977916,0.19833406,2620.6,2620.1,2.30845031]
[1646945978118,0.3403,2620.8,2620.2,1.35369031]
[1646945978416,0.3403,2620.8,2620.1,1.35369031]
[1646945978616,1.0,2620.6,2620.3,1.90937]
[1646945978818,1.0,2620.9,2620.4,4.85840819]
[1646945979018,1.0,2620.9,2620.5,1.43122565]
[1646945979226,1.0,2620.9,2620.7,0.07864046]
[1646945979518,1.0,2620.9,2620.8,1.35369031]
[1646945980119,1.0,2620.9,2620.7,1.35840793]
[1646945980320,1.0,2620.9,2620.7,0.00471762]
[1646945980518,0.95456,2620.9,2620.7,0.00471762]
[1646945980948,0.95456,2620.9,2620.7,1.90909]
[1646945981155,0.19818413,2620.8,2620.7,1.90909]
[1646945981354,0.19818413,2620.8,2620.7,1.91380762]
[1646945982154,0.19818413,2620.8,2620.7,1.90909]
[1646945982155,1.11161911,2620.8,2620.7,1.90909]
[1646945982458,0.95692585,2620.8,2620.7,1.90909]
[1646945982858,0.04349087,2620.8,2620.7,1.90909]
[1646945983057,0.24164228,2620.8,2620.7,1.90909]
[1646945983256,0.04349087,2620.8,2620.7,1.90909]
[1646945983655,0.24163901,2620.8,2620.7,1.90909]
[1646945984900,0.24163901,2620.8,2620.6,0.00455844]
[1646945985103,1.15286814,2620.7,2620.6,0.00455844]
[1646945985501,0.04349087,2620.8,2620.6,0.00455844]
[1646945985901,0.04349087,2620.8,2620.5,1.90893]
[1646945986304,3.79349087,2620.9,2620.5,1.90893]
[1646945986503,0.19816914,2620.8,2620.5,1.90893]
[1646945986902,0.19816914,2620.8,2620.5,1.85893]
[1646945987304,0.19816914,2620.8,2620.5,2.81788778]
[1646945987504,0.19816914,2620.8,2620.5,1.86332488]
[1646945987505,12.65463,2620.7,2620.5,1.86332488]
[1646945987709,12.65463,2620.7,2620.5,0.00439488]
[1646945987907,0.95463,2620.7,2620.5,0.00439488]
[1646945988106,3.79349087,2620.9,2620.6,0.07076249]
[1646945989161,3.79349087,2620.9,2620.8,0.07855655]
[1646945989363,3.79349087,2620.9,2620.8,1.03283905]
[1646945989560,3.79349087,2620.9,2620.8,0.9542825]
[1646945991570,3.79349087,2620.9,2620.8,6.1044966]
[1646945992606,3.79349087,2620.9,2620.8,2.6044966]
[1646945993013,3.79349087,2620.9,2620.8,2.3044966]
[1646945993408,3.79349087,2620.9,2620.8,0.9542825]
[1646945994011,3.79349087,2620.9,2620.7,0.95649977]
[1646945994210,15.49349087,2620.9,2620.4,0.95475]
[1646945994408,16.49349087,2620.9,2620.4,0.95475]
[1646945994609,1.10598797,2620.8,2620.4,0.95475]
[1646945994809,12.60798437,2620.8,2620.4,0.95475]
[1646945995211,0.95469,2620.7,2620.4,0.95475]
[1646945995411,1.0,2620.7,2620.4,0.95475]
[1646945995818,1.0,2620.7,2620.4,2.2093379]
[1646945996851,3.79349087,2620.9,2620.7,0.67595902]
[1646945997052,3.79349087,2620.9,2620.7,1.63051902]
[1646945997454,3.79349087,2620.9,2620.8,3.5]
[1646945997654,3.79349087,2620.9,2620.7,1.63051902]
[1646945997655,4.00997385,2620.9,2620.7,1.63051902]
[1646945997855,3.79349087,2620.9,2620.7,1.63051902]
[1646945998054,3.79349087,2620.9,2620.7,2.58503212]
[1646945998257,3.79349087,2620.9,2620.7,2.58948536]
[1646945999156,1.0,2620.8,2620.7,2.58503212]
[1646945999354,1.0,2620.8,2620.7,2.5894854]
[1646945999808,3.79349087,2620.9,2620.7,2.8894854]
[1646946000010,3.79349087,2620.9,2620.8,0.07906741]
[1646946000209,4.3570227,2620.9,2620.8,0.07906741]
[1646946000820,5.5045218,2620.9,2620.7,1.6349723]
[1646946001011,0.21641165,2620.8,2620.7,1.6349723]
[1646946001412,1.21641165,2620.8,2620.7,1.6349723]
[1646946001611,0.21641165,2620.8,2620.7,1.63051902]
[1646946002111,1.21641165,2620.8,2620.7,1.63051902]
[1646946002512,1.16641165,2620.8,2620.7,1.63051902]
[1646946002710,0.16641165,2620.8,2620.7,1.63051902]
[1646946002911,3.3570227,2620.9,2620.7,1.63855373]
[1646946003112,0.0312,2620.8,2620.7,1.63051902]
[1646946003320,0.0363,2620.8,2620.7,2.88489902]
[1646946003555,1.0363,2620.8,2620.7,2.88489902]
[1646946003755,1.0363,2620.8,2620.7,2.94603884]
[1646946004356,1.0363,2620.8,2620.7,1.99969355]
[1646946004556,1.0363,2620.8,2620.7,1.69969355]
[1646946004760,1.0363,2620.8,2620.7,2.95403685]
[1646946004965,0.0363,2620.8,2620.7,2.95403685]
[1646946005364,3.3570227,2620.9,2620.7,2.95403685]
[1646946005564,3.3570227,2620.9,2620.7,2.89289703]
[1646946005762,3.3570227,2620.9,2620.8,0.06113982]
[1646946005969,3.3570227,2620.9,2620.8,0.06917453]
[1646946006167,4.3570227,2620.9,2620.8,0.06917453]
[1646946007208,4.3570227,2620.9,2620.8,3.56917453]
[1646946007408,4.3570227,2620.9,2620.8,0.06917453]
[1646946007706,4.3070227,2620.9,2620.8,0.06917453]
[1646946008610,3.3070227,2620.9,2620.8,0.06917453]
[1646946009008,4.3070227,2620.9,2620.8,0.16569998]
[1646946009308,4.3070227,2620.9,2620.8,0.26222543]
[1646946010115,4.3070227,2620.9,2620.8,0.21222543]
[1646946010313,4.3070227,2620.9,2620.8,0.20108561]
[1646946010513,4.3070227,2620.9,2620.8,0.21222543]
[1646946012562,4.0570227,2620.9,2620.8,0.21222543]
[1646946017021,4.0570227,2620.9,2620.8,0.28594553]
[1646946017919,4.0570227,2620.9,2620.8,0.13291706]
[1646946018117,4.0570227,2620.9,2620.8,0.10766527]
[1646946018320,15.7570227,2620.9,2620.8,0.13291706]
[1646946019372,4.0570227,2620.9,2620.8,0.13291706]
[1646946019573,5.0116227,2620.9,2620.8,0.13291706]
[1646946019974,4.9616227,2620.9,2620.8,0.13291706]
[1646946020777,4.9116227,2620.9,2620.8,0.13291706]
[1646946022074,4.8616227,2620.9,2620.8,0.13291706]
[1646946022509,5.07897742,2620.9,2620.8,1.47455734]
[1646946023109,16.77897742,2620.9,2620.8,1.47455734]
[1646946023311,5.07897742,2620.9,2620.8,1.47455734]
[1646946023709,16.77897742,2620.9,2620.8,1.47455734]
[1646946023915,16.77897742,2620.9,2620.8,0.13291706]
[1646946024110,17.48135947,2620.9,2620.8,0.13291706]
[1646946024314,16.83147931,2620.9,2620.8,0.13291706]
[1646946024509,17.83147931,2620.9,2620.8,0.13291706]
[1646946025114,18.76766701,2620.9,2620.8,0.13291706]
[1646946027758,17.77897742,2620.9,2620.8,0.13291706]
[1646946028361,7.52995937,2620.9,2620.8,0.13291706]
[1646946028560,7.52995937,2620.9,2620.8,0.20860762]
[1646946028561,5.12437742,2620.9,2620.8,0.20860762]
[1646946028761,4.12437742,2620.9,2620.8,0.13291706]
[1646946029164,4.82924449,2620.9,2620.8,0.13291706]
[1646946030016,5.07896742,2620.9,2620.8,0.13291706]
[1646946030216,6.1332954,2620.9,2620.8,0.13291706]
[1646946030416,17.8332954,2620.9,2620.8,0.13291706]
[1646946031219,18.53796142,2620.9,2620.8,0.13291706]
[1646946031419,17.8332954,2620.9,2620.8,0.13291706]
[1646946032123,19.06774688,2620.9,2620.8,0.13291706]
[1646946032921,17.8332954,2620.9,2620.8,0.13291706]
[1646946033757,6.1332954,2620.9,2620.8,0.13291706]
[1646946033957,6.07896742,2620.9,2620.8,0.05974784]
[1646946034357,6.78332756,2620.9,2620.8,0.03639161]
[1646946034555,6.78332756,2620.9,2620.8,0.05974784]
[1646946034761,5.82873756,2620.9,2620.8,0.05974784]
[1646946035559,5.12437742,2620.9,2620.8,0.05974784]
[1646946035764,4.12437742,2620.9,2620.8,0.05974784]
[1646946037307,4.12437742,2620.9,2620.8,0.132285]
[1646946037903,4.12437742,2620.9,2620.7,1.89885204]
[1646946038102,0.21735472,2620.8,2620.7,1.90293198]
[1646946038905,0.21735472,2620.8,2620.7,1.89885204]
[1646946039306,0.21735472,2620.8,2620.7,3.21921066]
[1646946039706,0.21735472,2620.8,2620.7,1.89885204]
[1646946040311,0.21735472,2620.8,2620.7,0.67595902]
[1646946044060,0.21735472,2620.8,2620.7,2.01211741]
[1646946044460,0.95453,2621.1,2621.0,4.17126244]
[1646946044705,1.95453,2621.1,2621.0,4.17126244]
[1646946045117,1.0,2621.1,2621.0,4.17126244]
[1646946046411,4.8,2621.1,2621.0,4.17126244]
[1646946049152,4.8,2621.1,2621.0,8.35436244]
[1646946049353,1.3173877,2621.6,2621.2,4.26910656]
[1646946049354,0.3812,2621.6,2621.2,4.26910656]
[1646946049557,0.3812,2621.6,2621.2,7.999725]
[1646946049757,0.3812,2621.6,2621.3,0.08821492]
[1646946050163,0.3812,2621.6,2621.3,0.09019984]
[1646946050361,0.3812,2621.6,2621.3,1.99843984]
[1646946050562,0.9361877,2621.9,2621.5,0.06804929]
[1646946050766,0.9361877,2622.0,2621.5,0.06804929]
[1646946050964,3.36727417,2622.2,2621.5,0.06804929]
[1646946050965,1.9361877,2622.2,2621.5,0.06804929]
[1646946051165,1.0,2622.2,2621.6,0.00198469]
[1646946051371,1.0,2622.2,2621.6,0.19268469]
[1646946051563,1.0,2622.2,2621.6,1.34498995]
[1646946051763,1.0,2622.2,2621.9,0.07771826]
[1646946051963,1.0,2622.2,2622.0,0.3831]
[1646946052207,1.0,2622.2,2622.0,0.46727866]
[1646946053011,1.0,2622.2,2622.0,1.42111866]
[1646946053210,1.0,2622.2,2622.1,0.08896362]
[1646946054012,1.0,2622.4,2622.3,0.08168224]
[1646946054411,1.0,2622.4,2622.3,3.96478224]
[1646946054611,1.0,2622.4,2622.3,4.1831]
[1646946054811,1.0,2622.4,2622.3,0.6831]
[1646946055110,0.70302943,2622.6,2622.4,1.33675]
[1646946055315,0.70302943,2622.6,2622.4,2.2903716]
[1646946055512,0.65302943,2622.6,2622.5,0.3]
[1646946055715,0.94073285,2622.9,2622.5,0.3]
[1646946055981,0.9361877,2623.0,2622.5,1.25362]
[1646946056167,0.00435597,2622.9,2622.5,3.16084]
[1646946056373,0.00435597,2622.9,2622.6,0.9536188]